bitfinex-derivatives/quotes_BNBF0:USTF0_20250510
["timestamp","ask_amount","ask_price","bid_price","bid_amount"]
[1746899244443,0.30426117,657.33,657.32,1.70847359]
[1746899247842,0.30426117,657.33,657.32,1.16224846]
[1746899248048,0.30426117,657.33,657.32,1.70302132]
[1746899251449,0.30426117,657.33,657.32,1.70322167]
[1746899255051,0.30426117,657.33,657.32,1.70355486]
[1746899258155,0.30426117,657.33,657.32,1.16224846]
[1746899259560,0.30426117,657.33,656.49,0.9657312]
[1746899259756,0.30426117,657.33,656.5,0.54185031]
[1746899259955,0.30426117,657.33,656.51,0.54185031]
[1746899260156,0.30426117,657.33,656.52,1.71037607]
[1746899260457,0.30426117,657.33,656.53,0.54173812]
[1746899260655,0.30426117,657.33,656.54,0.54173812]
[1746899260852,0.30426117,657.33,656.55,1.71026388]
[1746899261055,0.30426117,657.33,656.56,0.54173812]
[1746899261258,0.30426117,657.33,656.57,1.71026388]
[1746899261455,0.30426117,657.33,656.58,0.54173812]
[1746899261651,0.30426117,657.33,656.59,0.54173812]
[1746899261855,0.30426117,657.33,656.6,0.54173812]
[1746899262055,0.30426117,657.33,656.61,0.54173812]
[1746899262252,0.30426117,657.33,656.62,1.71026388]
[1746899262554,0.30426117,657.33,656.63,0.54173812]
[1746899262757,0.30426117,657.33,656.64,0.54173812]
[1746899262958,0.30426117,657.33,656.65,1.71026388]
[1746899263157,0.30426117,657.33,656.66,0.54173812]
[1746899263357,0.30426117,657.33,656.67,0.54173812]
[1746899263552,0.30426117,657.33,656.68,0.54173812]
[1746899263752,0.30426117,657.33,656.69,1.71026388]
[1746899263952,0.30426117,657.33,656.7,0.54173812]
[1746899264151,0.30426117,657.33,656.71,0.54173812]
[1746899264358,0.30426117,657.33,656.72,1.71026388]
[1746899264555,0.30426117,657.33,656.73,0.54173812]
[1746899264756,0.30426117,657.33,656.74,1.71026388]
[1746899264953,0.30426117,657.33,656.75,0.54173812]
[1746899265156,0.30426117,657.33,656.74,1.16852576]
[1746899265157,0.30426117,657.33,656.76,0.54173812]
[1746899265358,0.30426117,657.33,656.77,0.54173812]
[1746899265558,0.30426117,657.33,656.78,1.71026388]
[1746899265855,0.30426117,657.33,656.79,0.53188114]
[1746899266060,0.30426117,657.33,656.8,0.53188114]
[1746899266357,0.30426117,657.33,656.81,1.7004069]
[1746899266557,0.30426117,657.33,656.82,0.53188114]
[1746899266758,0.30426117,657.33,656.83,1.7004069]
[1746899266954,0.30426117,657.33,656.84,0.53188114]
[1746899267160,0.30426117,657.33,656.85,1.7004069]
[1746899267357,0.30426117,657.33,656.86,0.53188114]
[1746899267586,0.30426117,657.33,656.87,0.53188114]
[1746899267758,0.30426117,657.33,656.88,0.53188114]
[1746899267961,0.30426117,657.33,656.89,1.7004069]
[1746899268156,0.30426117,657.33,656.9,1.7004069]
[1746899268356,0.30426117,657.33,656.91,0.53188114]
[1746899268558,0.30426117,657.33,656.92,0.53188114]
[1746899268756,0.30426117,657.33,656.9,1.16852576]
[1746899268757,1.97993894,658.73,656.93,1.7004069]
[1746899268958,0.26462772,658.22,656.94,0.53188114]
[1746899269155,0.30362374,658.71,656.95,1.7004069]
[1746899269360,0.30362374,658.71,656.96,0.53025174]
[1746899269558,0.30362374,658.71,656.97,0.53025174]
[1746899269853,0.26123171,658.7,656.98,1.69867805]
[1746899270059,0.26123171,658.7,656.99,0.53015229]
[1746899270254,0.26123171,658.7,657.0,1.97806002]
[1746899270459,0.26451005,658.69,657.01,0.53015229]
[1746899270658,0.26451005,658.69,657.02,0.53015229]
[1746899270861,0.26123171,658.68,657.03,1.97804734]
[1746899271060,0.30364679,658.66,657.04,0.53015229]
[1746899271256,0.30364679,658.66,657.05,0.53015229]
[1746899271562,0.30364679,658.66,657.06,0.53015229]
[1746899271755,0.52573774,658.65,657.07,0.53015229]
[1746899271960,0.30366062,658.63,657.08,0.53015229]
[1746899272160,0.30366062,658.63,657.09,0.53015229]
[1746899272457,0.30366062,658.63,657.1,0.53015229]
[1746899272656,0.26123171,658.62,657.11,0.53015229]
[1746899272859,0.30367446,658.6,657.12,0.53015229]
[1746899273063,0.30367446,658.6,657.13,0.53015229]
[1746899273266,0.26123171,658.59,657.14,0.53015229]
[1746899273465,0.30368829,658.57,657.15,0.52854835]
[1746899273763,0.30368829,658.57,657.16,1.69707411]
[1746899273962,0.30368829,658.57,657.17,1.69707411]
[1746899274163,0.26123171,658.56,657.18,0.52854835]
[1746899274363,0.26123171,658.56,657.17,1.16852576]
[1746899274364,0.30370212,658.54,657.19,1.69707411]
[1746899274565,0.30370212,658.54,657.2,0.52854835]
[1746899274864,0.52574377,658.53,657.21,1.69707411]
[1746899275063,0.52574377,658.53,657.22,0.52854835]
[1746899275266,0.26123171,658.52,657.23,1.69707411]
[1746899275459,0.30371596,658.51,657.24,0.52854835]
[1746899275659,0.30371596,658.51,657.25,0.52854835]
[1746899275860,0.26123171,658.5,657.26,1.69707411]
[1746899276064,0.3037298,658.48,657.27,0.52854835]
[1746899276365,0.3037298,658.48,657.28,1.69707411]
[1746899276565,0.26123171,658.47,657.29,0.52800171]
[1746899276762,0.26123171,658.47,657.3,0.52800171]
[1746899276960,0.26123171,658.47,657.31,1.69652747]
[1746899277260,0.30374364,658.45,657.32,0.52800171]
[1746899277463,0.30374364,658.45,657.33,0.52800171]
[1746899277658,0.30374364,658.45,657.34,0.52800171]
[1746899277862,0.26123171,658.44,657.35,0.52800171]
[1746899278060,0.30375748,658.42,657.36,0.52800171]
[1746899278264,0.30375748,658.42,657.37,0.52800171]
[1746899278463,0.30375748,658.42,657.38,0.52800171]
[1746899278765,0.30375748,658.42,657.33,1.16852576]
[1746899278766,0.26123171,658.41,657.39,1.69652747]
[1746899279059,0.30377132,658.39,657.4,1.69652747]
[1746899279257,0.30377132,658.39,657.41,0.52800171]
[1746899279462,0.30377132,658.39,657.42,0.52800171]
[1746899279669,0.26123171,658.38,657.43,1.69652747]
[1746899279866,0.26123171,658.38,657.44,0.52800171]
[1746899280064,0.26123171,658.38,657.45,1.69652747]
[1746899280266,0.26123171,658.38,657.46,0.52800171]
[1746899280459,0.26123171,658.38,657.47,0.52800171]
[1746899280663,0.26123171,658.38,657.48,1.69652747]
[1746899280860,0.26123171,658.38,657.49,1.69652747]
[1746899281064,0.26123171,658.38,657.5,0.52800171]
[1746899281364,0.30378516,658.36,657.51,1.69652747]
[1746899281564,0.26123171,658.35,657.52,0.52800171]
[1746899281767,0.26123171,658.35,657.51,1.16852576]
[1746899281962,0.30378516,658.36,657.53,1.16852576]
[1746899282468,0.30378516,658.36,656.36,0.9657312]
[1746899282666,0.30378516,658.36,656.37,0.52900004]
[1746899282966,0.26153051,658.35,656.37,0.26471931]
[1746899283167,0.26153051,658.35,656.38,1.68804167]
[1746899283364,0.26153051,658.35,656.39,0.52633415]
[1746899283565,0.26153051,658.34,656.4,1.68804167]
[1746899283781,0.26153051,658.34,656.41,0.52633415]
[1746899283965,0.26153051,658.33,656.42,0.52633415]
[1746899284161,0.26153051,658.32,656.43,0.52633415]
[1746899284368,0.26153051,658.31,656.44,1.68804167]
[1746899284564,0.26153051,658.31,656.45,0.52633415]
[1746899284867,0.52630722,658.3,656.45,1.16170752]
[1746899285174,1.30930722,658.3,656.45,1.16170752]
[1746899285373,1.30930722,658.3,656.38,0.26474952]
[1746899285769,1.30930722,658.3,655.35,0.9657312]
[1746899286065,1.30930722,658.3,655.94,0.26499749]
[1746899286269,0.26153051,658.29,655.95,0.49373038]
[1746899286470,0.26153051,658.29,655.96,0.49206749]
[1746899286667,0.26153051,658.29,655.97,0.49206749]
[1746899286865,0.26153051,658.29,655.98,1.6255588]
[1746899287072,1.04777671,658.3,655.99,1.13354784]
[1746899287369,0.2619477,658.28,655.99,1.13354784]
[1746899287565,0.2619477,658.29,655.7,0.2650207]
[1746899287767,0.2619477,658.27,655.7,0.2650207]
[1746899287967,0.2619477,658.26,655.7,0.2650207]
[1746899288265,0.2619477,658.25,655.7,0.2650207]
[1746899288470,0.2619477,658.25,655.35,0.9657312]
[1746899288670,0.2619477,658.24,655.36,1.61418218]
[1746899288873,0.2619477,658.24,655.37,0.48988328]
[1746899289067,0.2619477,658.24,655.38,0.48988328]
[1746899289268,0.2619477,658.24,655.39,0.48988328]
[1746899289465,0.2619477,658.23,655.4,0.48988328]
[1746899289665,0.2619477,658.23,655.41,0.48988328]
[1746899289862,0.2619477,658.22,655.42,1.61418218]
[1746899290064,0.2619477,658.22,655.43,0.48988328]
[1746899290264,0.2619477,658.21,655.44,0.48988328]
[1746899290466,0.2619477,658.21,655.45,1.61418218]
[1746899290665,0.2619477,658.2,655.46,0.48988328]
[1746899290966,0.2619477,658.2,655.47,0.48988328]
[1746899291164,0.2619477,658.19,655.48,1.61418218]
[1746899291367,0.2619477,658.18,655.49,0.48988328]
[1746899291571,0.2619477,658.18,655.48,1.1242989]
[1746899291764,0.2619477,658.17,655.49,1.1242989]
[1746899291969,0.2619477,658.16,654.98,0.2651368]
[1746899292165,0.2619477,658.16,654.99,0.48740285]
[1746899292370,0.2619477,658.16,655.0,0.48740285]
[1746899292669,0.2619477,658.15,654.35,0.9657312]
[1746899292870,0.52711783,658.15,654.99,0.26517013]
[1746899293170,0.2619477,658.14,654.36,0.28044557]
[1746899293362,0.2619477,658.14,654.37,1.59982303]
[1746899293572,0.2619477,658.13,654.38,0.48730758]
[1746899293872,0.2619477,658.12,654.39,0.28046418]
[1746899294073,0.2619477,658.11,654.4,1.59982303]
[1746899294265,0.2619477,658.11,654.41,1.59982303]
[1746899294469,0.2619477,658.1,654.42,0.48730758]
[1746899294666,0.2619477,658.09,654.42,0.48730758]
[1746899294872,0.2619477,658.09,654.43,1.11251545]
[1746899295170,0.2619477,658.08,654.44,0.48730758]
[1746899295371,0.26517013,658.15,654.45,1.11251545]
[1746899295671,0.26192067,658.07,654.45,1.11251545]
[1746899295871,0.26192067,658.07,654.46,1.11251545]
[1746899296071,0.26192067,658.06,654.46,1.11251545]
[1746899296276,0.26192067,658.06,654.47,1.11251545]
[1746899296472,0.26192067,658.05,654.47,1.11251545]
[1746899296666,0.26192067,658.05,654.48,1.60247929]
[1746899296870,0.26192067,658.04,654.48,1.11251545]
[1746899297069,0.26192067,658.04,654.4,0.26530254]
[1746899297070,0.26192067,658.04,654.49,1.11251545]
[1746899297272,0.26192067,658.03,654.4,0.26530254]
[1746899297474,0.26192067,658.02,654.4,0.26530254]
[1746899298068,0.26192067,658.01,654.4,0.26530254]
[1746899298374,0.26192067,658.0,654.4,0.26530254]
[1746899298671,0.26192067,657.99,654.41,1.37810056]
[1746899298974,0.52732742,657.99,654.42,1.09761417]
[1746899299174,0.52732742,657.99,654.43,1.09761417]
[1746899299377,0.26192067,657.98,654.42,0.28048639]
[1746899299575,0.26192067,657.97,654.41,0.28048639]
[1746899300077,0.26192067,657.96,654.4,0.26540675]
[1746899300376,0.26192067,657.95,654.4,0.26540675]
[1746899300776,0.26192067,657.94,654.4,0.26540675]
[1746899301279,0.26192067,657.93,654.4,0.26540675]
[1746899301579,0.26192067,657.93,654.1,0.30576364]
[1746899301580,0.26192067,657.92,654.1,0.30576364]
[1746899301876,0.26192067,657.92,654.14,0.26547457]
[1746899302078,0.26192067,657.91,654.1,0.30576364]
[1746899302478,0.26192067,657.9,654.1,0.30576364]
[1746899302679,0.26192067,657.89,654.1,0.30576364]
[1746899303079,0.26192067,657.88,654.1,0.30576364]
[1746899303381,0.26192067,657.87,654.1,0.30576364]
[1746899303783,0.26192067,657.86,654.1,0.30576364]
[1746899304084,0.26192067,657.85,654.1,0.30576364]
[1746899304379,0.26192067,657.84,654.1,0.30576364]
[1746899304779,0.26552825,657.83,654.1,0.30576364]
[1746899305081,0.52744892,657.83,654.1,0.30576364]
[1746899305981,0.26192067,657.82,654.1,0.30576364]
[1746899306585,0.26192067,657.81,654.1,0.30576364]
[1746899306886,0.26192067,657.8,654.13,0.28063755]
[1746899307187,0.26192067,657.79,654.13,0.28063755]
[1746899307591,0.26192067,657.78,654.13,0.28063755]
[1746899307887,0.26192067,657.77,654.14,0.28063755]
[1746899308287,0.26192067,657.76,654.13,0.28063755]
[1746899308781,0.26192067,657.75,654.13,0.28063755]
[1746899309182,0.26192067,657.74,654.13,0.28063755]
[1746899309489,0.26192067,657.73,654.13,0.28063755]
[1746899309787,0.26192067,657.72,654.13,0.28063755]
[1746899310188,0.26192067,657.71,654.13,0.28063755]
[1746899310487,0.26192067,657.7,654.14,0.28063755]
[1746899310887,0.26192067,657.69,654.15,0.28063755]
[1746899311287,0.26192067,657.68,654.13,0.28063755]
[1746899311587,0.26192067,657.67,654.13,0.28063755]
[1746899311788,0.96092067,657.67,654.13,0.28063755]
[1746899311987,0.26192067,657.66,654.13,0.28063755]
[1746899312486,0.26192067,657.65,654.13,0.28063755]
[1746899312788,0.26192067,657.64,654.14,0.28063755]
[1746899313183,0.26192067,657.63,654.15,0.28063755]
[1746899313588,0.26192067,657.62,654.16,0.28063755]
[1746899313791,0.26192067,657.62,654.17,0.47612946]
[1746899313988,0.26192067,657.61,654.18,0.47612946]
[1746899314187,0.26192067,657.61,654.17,0.28063755]
[1746899314386,0.26192067,657.6,654.19,0.28063755]
[1746899314587,0.26192067,657.6,654.2,0.3057169]
[1746899314788,0.26192067,657.59,654.2,0.58635445]
[1746899315091,0.52721411,657.59,654.2,0.58635445]
[1746899315387,0.26192067,657.58,654.21,0.28063755]
[1746899315582,0.26192067,657.58,654.2,0.3057169]
[1746899315583,0.26192067,657.57,654.22,0.28063755]
[1746899316488,0.26192067,657.56,654.23,0.28063755]
[1746899316790,0.26192067,657.55,654.24,0.28063755]
[1746899317185,0.26192067,657.54,654.25,0.28063755]
[1746899317487,0.26192067,657.53,654.26,0.28063755]
[1746899317789,0.26192067,657.52,654.27,0.28063755]
[1746899318184,0.26192067,657.51,654.21,0.28063755]
[1746899318584,0.26192067,657.5,654.21,0.28063755]
[1746899319391,0.26192067,657.49,654.21,0.28063755]
[1746899319992,0.26192067,657.48,654.22,0.28063755]
[1746899320187,0.26192067,657.47,654.23,0.28063755]
[1746899320795,0.26192067,657.46,654.24,0.28063755]
[1746899321093,0.26192067,657.45,654.25,0.28063755]
[1746899321392,0.26192067,657.44,654.26,0.28063755]
[1746899321787,0.26192067,657.43,654.27,0.87815523]
[1746899322186,0.26192067,657.42,654.28,0.87815523]
[1746899322487,0.26192067,657.41,654.29,0.87815523]
[1746899323291,0.26192067,657.4,654.3,0.28063755]
[1746899323593,0.26529344,657.59,654.2,0.3057169]
[1746899323891,0.26529344,657.59,654.21,1.07614473]
[1746899324094,0.26201832,657.58,654.21,1.95295356]
[1746899324391,0.26201832,657.57,654.22,0.87680883]
[1746899324791,0.26201832,657.56,654.23,1.95295356]
[1746899325097,0.26201832,657.55,654.24,0.28017259]
[1746899325493,0.26201832,657.54,654.25,1.83100891]
[1746899325686,0.26201832,657.54,654.26,0.47469159]
[1746899325890,0.26201832,657.53,654.27,1.07614473]
[1746899326088,0.26201832,657.52,654.28,0.75486418]
[1746899326288,0.26201832,657.52,654.29,1.55083632]
[1746899326489,0.26201832,657.51,654.3,0.47469159]
[1746899326795,1.97993894,658.21,654.3,0.47469159]
[1746899326987,1.97993894,658.21,654.31,1.07614473]
[1746899327188,1.97993894,658.21,654.32,0.47469159]
[1746899327392,0.26520651,658.2,654.32,0.47469159]
[1746899327591,0.52718444,658.2,654.33,0.87648254]
[1746899327787,0.26197793,658.19,654.34,2.42731886]
[1746899327992,0.26197793,658.19,654.35,0.47511415]
[1746899328189,0.26197793,658.19,654.36,1.55125888]
[1746899328390,0.26197793,658.18,654.37,0.47511415]
[1746899328592,0.26197793,658.18,654.38,1.07614473]
[1746899328793,0.26197793,658.17,654.39,0.47511415]
[1746899329093,0.26197793,658.16,654.4,0.87648254]
[1746899329293,0.26197793,658.16,654.41,0.47511415]
[1746899329494,0.26197793,658.16,654.41,1.55125888]
[1746899329691,0.26197793,658.15,654.42,0.75524609]
[1746899329889,0.26197793,658.15,654.43,0.47511415]
[1746899330091,0.26197793,658.15,654.44,1.07614473]
[1746899330289,0.26197793,658.14,654.45,0.47511415]
[1746899330794,0.26197793,658.14,654.46,1.07614473]
[1746899330996,0.26197793,658.13,654.47,0.78070493]
[1746899331196,0.26197793,658.12,654.48,1.83139082]
[1746899331390,0.26197793,658.12,654.48,1.35627667]
[1746899331594,0.30397908,657.94,654.49,0.75735723]
[1746899331792,0.30397908,657.94,654.5,0.47722529]
[1746899331996,0.26197793,657.93,654.51,1.07614473]
[1746899332194,0.30406227,657.76,654.52,0.47722529]
[1746899332394,0.30406227,657.76,654.52,0.75735723]
[1746899332597,0.30406227,657.76,654.53,1.55337002]
[1746899332896,0.26197793,657.75,654.54,0.47722529]
[1746899333196,0.26197793,657.74,654.55,0.28013194]
[1746899333497,0.26197793,657.74,654.56,1.55513015]
[1746899333797,0.26197793,657.73,654.57,0.47898542]
[1746899334096,0.26197793,657.72,654.58,0.75911736]
[1746899334396,0.26197793,657.71,654.59,1.83526209]
[1746899334589,0.26197793,657.71,654.6,0.47898542]
[1746899334790,0.30415475,657.56,654.6,1.83526209]
[1746899335093,0.26197793,657.55,654.61,1.83526209]
[1746899335295,0.26197793,657.55,654.62,0.47898542]
[1746899335490,0.26197793,657.54,654.63,1.35627667]
[1746899335693,0.26197793,657.54,654.64,0.47898542]
[1746899335996,0.26197793,657.53,654.65,0.28013194]
[1746899336295,0.26197793,657.52,654.66,1.55513015]
[1746899336496,0.26197793,657.52,654.67,1.55513015]
[1746899336692,0.30423803,657.38,654.68,0.47898542]
[1746899336998,0.26197793,657.37,654.69,0.28013194]
[1746899337192,0.26197793,657.37,654.7,0.47898542]
[1746899337392,0.26197793,657.36,654.71,1.07614473]
[1746899337591,0.26197793,657.36,654.72,0.75911736]
[1746899337796,0.26197793,657.35,654.73,0.47898542]
[1746899337989,0.26197793,657.35,654.74,1.07614473]
[1746899338189,0.26197793,657.34,654.75,0.28013194]
[1746899338790,0.26197793,657.33,654.76,1.10447376]
[1746899338992,0.26197793,657.32,654.77,0.28013194]
[1746899339297,0.26197793,657.32,654.78,0.48788119]
[1746899339493,0.26197793,657.31,654.79,1.59225256]
[1746899339692,0.26197793,657.31,654.8,0.4877788]
[1746899339898,0.26197793,657.3,654.81,0.28013194]
[1746899340104,0.26197793,657.3,654.82,1.59225256]
[1746899340294,0.26197793,657.29,654.83,0.4877788]
[1746899340502,0.26197793,657.28,654.84,0.28013194]
[1746899340696,0.26197793,657.28,654.85,1.59225256]
[1746899340895,0.26197793,657.27,654.86,0.4877788]
[1746899341295,0.26197793,657.26,654.87,1.3846057]
[1746899341598,0.26197793,657.26,654.88,1.59225256]
[1746899341800,0.26197793,657.25,654.88,1.3846057]
[1746899342000,0.26197793,657.24,654.88,1.10447376]
[1746899342201,0.26197793,657.24,654.89,1.10447376]
[1746899342401,0.26197793,657.23,654.49,1.10447376]
[1746899342602,0.26197793,657.23,654.5,1.59470524]
[1746899342900,0.26197793,657.23,654.51,1.59470524]
[1746899343110,0.26197793,657.22,654.52,0.49023148]
[1746899343402,0.26197793,657.21,654.52,1.10447376]
[1746899343602,0.26197793,657.2,654.53,0.49151832]
[1746899343901,0.26197793,657.2,654.54,1.10447376]
[1746899344097,0.26197793,657.19,654.54,1.10447376]
[1746899344398,0.26197793,657.18,654.49,1.10447376]
[1746899344601,0.26535919,657.25,654.5,1.59589491]
[1746899344802,0.26535919,657.25,654.51,0.49142115]
[1746899345103,0.26170924,657.24,654.52,1.10447376]
[1746899345302,0.26170924,657.24,654.53,0.49142115]
[1746899345497,0.26170924,657.23,654.53,0.49142115]
[1746899345703,0.26535919,657.25,654.54,1.10447376]
[1746899345903,0.26535919,657.25,654.55,0.49142115]
[1746899345904,1.97993894,657.15,654.55,0.49142115]
[1746899346304,1.97993894,657.15,654.56,1.10447376]
[1746899346503,0.26171168,657.14,654.57,0.49142115]
[1746899346796,0.26171168,657.13,654.58,1.10447376]
[1746899347002,0.26171168,657.13,654.59,0.49142115]
[1746899347399,0.26171168,657.12,654.6,1.10447376]
[1746899347799,0.26171168,657.11,654.6,1.10447376]
[1746899348305,0.26171168,657.1,654.61,0.49207415]
[1746899348502,0.26171168,657.1,654.62,0.49207415]
[1746899348699,0.26171168,657.1,654.63,1.59644187]
[1746899348901,0.26535919,657.25,654.63,1.59644187]
[1746899348902,0.26171168,657.09,654.63,1.10447376]
[1746899349204,0.26171168,657.08,654.63,1.10447376]
[1746899349407,0.26171168,657.08,654.49,1.10447376]
[1746899349700,0.26171168,657.07,654.5,0.49197572]
[1746899349904,0.52720448,657.07,654.51,1.59644948]
[1746899350101,0.26171168,657.06,654.52,0.49197572]
[1746899350307,0.26171168,657.06,654.52,1.10447376]
[1746899350503,0.26171168,657.05,654.52,1.10447376]
[1746899350700,0.26171168,657.04,654.52,1.10447376]
[1746899350904,0.26171168,657.04,654.13,1.10447376]
[1746899351199,0.26171168,657.03,654.14,1.59710469]
[1746899351410,0.26171168,657.03,654.15,0.49263093]
[1746899351705,0.26171168,657.02,654.16,1.59710469]
[1746899351905,0.26171168,657.01,654.17,0.49263093]
[1746899352099,0.26171168,657.01,654.18,1.59710469]
[1746899352305,0.26171168,657.01,654.19,0.49263093]
[1746899352505,0.26171168,657.0,654.2,0.49263093]
[1746899352710,1.97993894,656.8,654.21,0.49263093]
[1746899352912,1.97993894,656.8,654.22,1.59710469]
[1746899353209,0.26171168,656.79,654.23,0.49263093]
[1746899353412,0.26171168,656.79,654.24,1.59710469]
[1746899353705,0.26171168,656.78,654.25,1.59710469]
[1746899353908,0.26171168,656.78,654.26,0.49263093]
[1746899354111,0.26171168,656.77,654.27,0.49263093]
[1746899354308,0.26171168,656.77,654.28,0.49263093]
[1746899354511,0.26171168,656.77,654.29,0.49263093]
[1746899354710,0.26171168,656.76,654.3,1.59654073]
[1746899354912,0.26171168,656.75,654.3,1.10447376]
[1746899355407,0.26171168,656.75,654.17,0.26557486]
[1746899355408,0.26171168,656.75,654.18,1.10447376]
[1746899355614,0.26171168,656.74,654.19,0.49226749]
[1746899355814,0.52728857,656.74,654.17,0.26557689]
[1746899356108,0.26171168,656.73,654.17,0.26557689]
[1746899356515,0.26171168,656.73,654.18,0.49211223]
[1746899356716,0.26171168,656.72,654.19,0.49211223]
[1746899357011,0.26171168,656.72,654.2,1.6111442]
[1746899357012,0.526,656.72,654.2,1.6111442]
[1746899357214,0.526,656.72,654.21,0.49211223]
[1746899357416,0.526,656.72,654.22,0.49211223]
[1746899357615,0.26171168,656.71,654.23,0.49211223]
[1746899357815,0.26171168,656.71,654.24,0.49211223]
[1746899358016,0.26171168,656.71,654.25,1.6111442]
[1746899358316,0.26171168,656.71,654.26,1.6111442]
[1746899358515,0.26171168,656.71,654.27,0.49211223]
[1746899358721,0.26171168,656.7,654.28,0.49211223]
[1746899358914,0.26555662,656.7,654.29,0.49211223]
[1746899359110,0.26555662,656.7,654.3,0.49211223]
[1746899359311,0.2616571,656.69,654.31,1.6111442]
[1746899359517,0.2616571,656.69,654.31,1.11903197]
[1746899359719,0.2616571,656.69,654.32,0.77214454]
[1746899359914,0.2616571,656.69,654.33,1.61072848]
[1746899360118,0.2616571,656.69,654.34,0.49169651]
[1746899360318,0.2616571,656.69,654.35,0.49169651]
[1746899360519,0.2616571,656.69,654.36,1.61072848]
[1746899360715,0.2616571,656.69,654.37,1.61072848]
[1746899360920,0.2616571,656.69,654.38,0.49169651]
[1746899361120,0.2616571,656.68,654.39,0.77214454]
[1746899361314,0.2616571,656.68,654.4,0.49169651]
[1746899361518,0.2616571,656.67,654.41,1.61072848]
[1746899361715,0.2616571,656.67,654.42,0.49169651]
[1746899361915,0.2616571,656.66,654.43,1.11903197]
[1746899362117,0.26551711,656.67,654.44,0.49169651]
[1746899362321,0.26551711,656.67,654.45,1.11903197]
[1746899362621,0.2616502,656.66,654.46,0.49169651]
[1746899362817,0.2616502,656.66,654.46,1.61072848]
[1746899363014,0.2616502,656.66,654.47,0.49169651]
[1746899363315,0.2616502,656.66,654.48,1.11903197]
[1746899363521,0.2616502,656.66,654.49,0.49169651]
[1746899363821,0.2616502,656.66,654.5,1.11903197]
[1746899364021,0.2616502,656.66,654.51,0.49169651]
[1746899364516,0.2616502,656.65,654.52,1.11903197]
[1746899364722,0.2616502,656.65,654.53,0.49169651]
[1746899364923,0.2616502,656.64,654.53,0.49169651]
[1746899365123,0.2616502,656.64,654.54,1.11903197]
[1746899365324,0.2616502,656.63,654.55,0.49169651]
[1746899365523,0.2616502,656.63,654.56,1.11903197]
[1746899365719,0.2616502,656.62,654.56,1.11903197]
[1746899365927,0.2616502,656.61,654.57,0.49384464]
[1746899366226,0.2616502,656.61,654.58,1.61288625]
[1746899366425,0.2616502,656.6,654.58,1.11903197]
[1746899366625,0.2616502,656.59,654.58,1.11903197]
[1746899367026,0.2616502,656.58,654.58,1.11903197]
[1746899367227,0.2616502,656.58,654.3,1.11903197]
[1746899367529,0.2616502,656.57,654.31,1.61301622]
[1746899367728,0.2616502,656.57,654.32,0.49398425]
[1746899367927,0.2616502,656.56,654.33,1.61301622]
[1746899368125,0.2616502,656.56,654.34,0.49398425]
[1746899368323,0.2616502,656.55,654.35,0.49398425]
[1746899368521,0.2616502,656.55,654.36,1.61301622]
[1746899368723,0.2616502,656.55,654.37,0.49398425]
[1746899369024,0.2616502,656.54,654.38,0.49398425]
[1746899369229,0.2616502,656.54,654.39,0.49398425]
[1746899369528,0.2616502,656.53,654.4,1.61301622]
[1746899369725,0.2616502,656.53,654.41,0.49398425]
[1746899369926,0.2616502,656.53,654.42,0.49398425]
[1746899370133,0.2616502,656.52,654.43,1.61301622]
[1746899370430,0.26551711,656.67,654.44,0.49398425]
[1746899370625,0.26551711,656.67,654.45,0.49398425]
[1746899370823,0.26162399,656.51,654.46,0.49398425]
[1746899371026,0.26162399,656.51,654.47,0.49398425]
[1746899371328,0.26162399,656.5,654.48,1.61301622]
[1746899371627,0.26162399,656.5,654.49,0.49398425]
[1746899371827,0.26162399,656.5,654.5,0.49398425]
[1746899372022,0.26162399,656.49,654.51,1.61301622]
[1746899372227,0.52716237,656.49,654.52,0.49398425]
[1746899372427,0.26162399,656.48,654.53,0.49398425]
[1746899372730,0.26553838,656.49,654.54,1.61301622]
[1746899372928,0.26160148,656.47,654.55,0.49398425]
[1746899373129,0.26160148,656.47,654.56,1.61301622]
[1746899373327,0.26160148,656.46,654.57,0.49398425]
[1746899373525,0.30467369,656.44,654.58,1.11903197]
[1746899373731,0.30467369,656.44,654.38,1.11903197]
[1746899373930,0.30467369,656.44,654.39,0.49351935]
[1746899374124,0.26160148,656.43,654.38,1.11903197]
[1746899374325,0.26160148,656.43,654.4,1.11903197]
[1746899374730,0.26160148,656.42,654.13,1.38469198]
[1746899375229,0.26160148,656.42,654.14,1.11903197]
[1746899375431,0.26160148,656.41,654.14,1.11903197]
[1746899375731,0.26160148,656.4,654.14,1.11903197]
[1746899375932,1.97993894,656.35,654.14,1.11903197]
[1746899376132,1.97993894,656.35,654.15,0.4934499]
[1746899376331,0.26160432,656.34,654.16,0.4934499]
[1746899376631,0.26160432,656.33,654.17,0.4934499]
[1746899376832,0.26566914,656.33,654.18,0.4934499]
[1746899377131,0.26566914,656.33,654.19,0.4934499]
[1746899377330,0.26163298,656.32,654.2,0.4934499]
[1746899377528,0.26163298,656.32,654.21,0.4934499]
[1746899377726,0.26163298,656.31,654.22,1.61248187]
[1746899378032,0.30478048,656.21,654.23,1.61248187]
[1746899378230,0.30478048,656.21,654.24,0.4934499]
[1746899378426,0.30478048,656.21,654.25,0.4934499]
[1746899378630,0.26163298,656.2,654.23,1.11903197]
[1746899378831,0.26163298,656.19,654.14,0.26566914]
[1746899379233,0.26163298,656.18,654.15,1.12002367]
[1746899379533,0.26163298,656.17,654.15,1.12002367]